fUSD/lending_fUSD_20240526
["ID","MTS","AMOUNT","RATE_DAILY","PERIOD"]
[327992994,1716763867014,-295.42,0.000353,3]
[327992995,1716763867023,-188.69,0.000353,3]
[327992996,1716763867034,-188.69,0.000353,3]
[327992997,1716763867045,-150.0,0.00035342,7]
[327992998,1716763867055,-1000.0,0.00035342,14]
[327992999,1716763867065,-328.0,0.000354,24]
[327993000,1716763867075,-6530.20310698,0.000354,8]
[327993001,1716763867085,-6634.16290793,0.000354,31]
[327993002,1716763867096,-151.0,0.000354,28]
[327993003,1716763867105,-1700.27630279,0.000354,2]
[327993004,1716763867115,-158.22,0.000354,7]
[327993005,1716763867125,-726.23304975,0.000354,2]
[327993006,1716763867135,-151.04,0.000354,7]
[327993007,1716763867145,-322.12600017,0.000354,2]
[327993008,1716763867154,-1000.0,0.00035411,14]
[327993009,1716763867164,-150.0,0.00035421,7]
[327993010,1716763867180,-300.0,0.00035468,120]
[327993011,1716763867194,-250.0,0.0003547,2]
[327993012,1716763867204,-250.0,0.0003547,2]
[327993013,1716763867215,-300.0,0.0003547,2]
[327993014,1716763867226,-1000.0,0.00035479,14]
[327993015,1716763867236,-506302.70410159,0.0003549,30]
[327993016,1716763867246,-35529.19827163,0.0003549,30]
[327993017,1716763867256,-38768.4408272,0.00035494,2]
[327993018,1716763867265,-155.0,0.00035496,4]
[327993019,1716763867275,-5539.86434306,0.00035496,15]
[327993020,1716763867284,-1211.74821861,0.00035498,30]
[327993021,1716763867294,-304204.18825167,0.00035499,30]
[327993022,1716763867303,-8650.33386234,0.00035499,7]
[327993023,1716763867312,-2000.0,0.000355,30]
[327993024,1716763867322,-126561.63873718,0.000355,5]
[327993025,1716763867520,-331.63639484,0.000355,5]
[327993026,1716763867537,-159633.66955751,0.000355,5]
[327993027,1716763867593,-500.0,0.00027397,4]
[327993028,1716763867605,-473.50947228,0.00027671,4]
[327993029,1716763867618,-500.0,0.00031506,4]
[327993030,1716763867631,-500.0,0.0003178,4]
[327993031,1716763867645,-431.38997772,0.00032054,4]
[327993032,1716763867661,-68.61002228,0.00032054,4]
[327993033,1716763867676,-27909.59527283,0.000355,5]
[327993034,1716763867836,-224.0,0.00013,2]
[327993035,1716763867850,-136.44824083,0.00013,2]
[327993036,1716763867864,-502.13752266,0.00013,2]
[327993037,1716763867879,-145.83433651,0.00013,2]
[327993038,1716763867893,-897.10762113,0.00013557,2]
[327993039,1716763867908,-9102.89237887,0.00013557,2]
[327993040,1716763867920,-250.0,0.00021918,2]
[327993041,1716763867933,-784.4201,0.00025,2]
[327993042,1716763867945,-503.98286323,0.00027397,4]
[327993043,1716763867958,-1002.0,0.000274,2]
[327993044,1716763867969,-500.0,0.00030112,2]
[327993045,1716763867981,-500.0,0.00030112,2]
[327993046,1716763867991,-6656.68059469,0.00030398,2]
[327993047,1716763868001,-500.0,0.00032328,4]
[327993048,1716763868010,-500.0,0.00032602,4]
[327993049,1716763868020,-500.0,0.00032876,4]
[327993050,1716763868029,-1002.54610003,0.000329,2]
[327993051,1716763868039,-585.53018735,0.0003315,4]
[327993052,1716763868049,-130797.42173795,0.000355,5]
[327993053,1716763868060,-316.8253737,0.000355,5]
[327993054,1716763868071,-270.74804263,0.000355,5]
[327993055,1716763868082,-415.7195867,0.000355,5]
[327993056,1716763868093,-1590.81941178,0.000355,5]
[327993057,1716763868104,-15176.65673947,0.000355,5]
[327993058,1716763868115,-63687.56443491,0.000355,5]
[327993059,1716763868127,-585.22668101,0.000355,5]
[327993060,1716763868138,-375.93228978,0.000355,5]
[327993061,1716763868150,-1092.35077587,0.000355,5]
[327993062,1716763868165,-2573.17623894,0.000355,5]
[327993063,1716763868178,-1515.15685412,0.000355,5]
[327993064,1716763868192,-61329.4634206,0.000355,5]
[327993065,1716763868205,-2055.95637963,0.000355,5]
[327993066,1716763868216,-3474.1344,0.000355,5]
[327993067,1716763868227,-983.86902031,0.000355,5]
[327993068,1716763868239,-1232.59825842,0.000355,5]
[327993069,1716763868250,-383.24446125,0.000355,5]
[327993070,1716763868261,-4270.15185033,0.000355,5]
[327993071,1716763868274,-1332.64491383,0.000355,5]
[327993075,1716764946105,-150.0,9.583e-05,2]
[327993076,1716764946124,-500.0,9.584e-05,2]
[327993077,1716764946143,-500.0,9.584e-05,2]
[327993078,1716764946162,-500.0,9.584e-05,2]
[327993079,1716764946181,-500.0,9.584e-05,2]
[327993080,1716764946200,-308.60428558,9.584e-05,2]
[327993081,1716764948136,-191.39571442,9.584e-05,2]
[327993082,1716764948158,-500.0,9.584e-05,2]
[327993083,1716764948182,-500.0,9.584e-05,2]
[327993084,1716764948207,-500.0,9.584e-05,2]
[327993085,1716764948228,-500.0,9.584e-05,2]
[327993086,1716764948247,-500.0,9.584e-05,2]
[327993087,1716764948268,-500.0,9.584e-05,2]
[327993088,1716764948290,-500.0,9.584e-05,2]
[327993089,1716764948310,-500.0,9.584e-05,2]
[327993090,1716764948333,-500.0,9.584e-05,2]
[327993091,1716764948354,-500.0,9.584e-05,2]
[327993092,1716764948373,-500.0,9.584e-05,2]
[327993093,1716764948395,-500.0,9.584e-05,2]
[327993094,1716764948416,-500.0,9.584e-05,2]
[327993095,1716764948437,-500.0,9.584e-05,2]
[327993096,1716764948460,-461.29692381,9.584e-05,2]
[327993121,1716765031795,-60.70307619,9.584e-05,2]
[327993122,1716765031805,-523.82451147,0.00012999,2]
[327993123,1716765031815,-103.57241234,0.00013556,2]
[327993124,1716765031828,-7688.27965313,0.00013556,2]
[327993125,1716765031840,-30606.44398482,0.00013556,2]
[327993126,1716765031850,-191.88,0.00013973,2]
[327993127,1716765031862,-324.91514942,0.00015,2]
[327993128,1716765031871,-155.0,0.00015,2]
[327993129,1716765031881,-10000.0,0.00015637,2]
[327993130,1716765031891,-410.67512791,0.00019451,2]
[327993131,1716765031900,-150.99,0.00019451,2]
[327993132,1716765031910,-1264.4259542,0.0002,2]
[327993133,1716765031919,-5190.00947145,0.0002,2]
[327993134,1716765031929,-6244.01880649,0.0002,2]
[327993135,1716765031939,-634.05792568,0.0002043,2]
[327993136,1716765031948,-191.88,0.00020447,2]
[327993137,1716765031957,-1050.0,0.00021,2]
[327993138,1716765031967,-153.57,0.00021155,2]
[327993139,1716765031976,-6776.29426629,0.00021999,2]
[327993140,1716765031985,-9161.51745053,0.00022,2]
[327993141,1716765031995,-200.0,0.00022699,2]
[327993144,1716765032180,-2751.0,0.00022712,2]
[327993145,1716765032191,-250.0,0.00022787,2]
[327993146,1716765032201,-439.16,0.00022841,2]
[327993147,1716765032211,-2000.0,0.00022864,2]
[327993148,1716765032220,-166.45,0.00022886,2]
[327993149,1716765032230,-250.0,0.00022922,2]
[327993150,1716765032240,-1100.0,0.00023,2]
[327993151,1716765032250,-5515.18694721,0.00023,2]
[327993152,1716765032259,-2006.19259401,0.000234,2]
[327993153,1716765032268,-153.57,0.00023419,2]
[327993154,1716765032278,-578.94,0.00023778,2]
[327993155,1716765032288,-697.4,0.00023806,2]
[327993156,1716765032297,-150.0,0.00023892,2]
[327993157,1716765032307,-432.97824557,0.00024,2]
[327993158,1716765032317,-155.04118763,0.0002461,2]
[327993159,1716765032326,-155.0,0.00025,2]
[327993160,1716765032335,-1150.0,0.00025,2]
[327993161,1716765032345,-927.45531659,0.00025,2]
[327993162,1716765032355,-224.47596139,0.00025,2]
[327993163,1716765032366,-180.0,0.00025047,2]
[327993164,1716765032375,-153.57,0.00025683,2]
[327993165,1716765032384,-163.36,0.0002589,2]
[327993166,1716765032394,-2100.0,0.00025919,2]
[327993167,1716765032403,-697.4,0.00026782,2]
[327993168,1716765032412,-1140.26247644,0.00026849,2]
[327993169,1716765032421,-191.88,0.00026921,2]
[327993170,1716765032430,-1200.0,0.00027,2]
[327993171,1716765032440,-842.0,0.000272,4]
[327993172,1716765032449,-1409.3567,0.00027297,2]
[327993173,1716765032458,-10762.2741,0.00027297,2]
[327993174,1716765032467,-2500.0,0.00027297,2]
[327993175,1716765032476,-166.860557,0.00027297,2]
[327993176,1716765032485,-1349.8836993,0.00027297,2]
[327993177,1716765032494,-635.09,0.00027387,3]
[327993178,1716765032503,-805.2552867,0.0002739,2]
[327993179,1716765032512,-4820.93,0.00027397,2]
[327993180,1716765032521,-501.91583839,0.00027397,4]
[327993181,1716765032530,-500.0,0.00027397,4]
[327993182,1716765032540,-500.0,0.00027397,4]
[327993183,1716765032549,-500.0,0.00027397,4]
[327993184,1716765032558,-500.0,0.00027397,4]
[327993185,1716765032567,-509.91795007,0.00027397,4]
[327993186,1716765032576,-500.0,0.00027397,4]
[327993187,1716765032585,-518.52327778,0.00027397,4]
[327993188,1716765032594,-206.27705642,0.00027397,4]
[327993189,1716765032603,-511.2471682,0.00027397,4]
[327993190,1716765032613,-500.0,0.00027397,4]
[327993191,1716765032622,-511.04657691,0.00027397,4]
[327993192,1716765032631,-500.0,0.00027397,4]
[327993193,1716765032640,-509.56174348,0.00027397,4]
[327993194,1716765032650,-500.0,0.00027397,4]
[327993195,1716765032659,-507.41219693,0.00027397,4]
[327993196,1716765032668,-511.13147039,0.00027397,4]
[327993197,1716765032677,-529.23810908,0.00027397,4]
[327993198,1716765032687,-500.0,0.00027397,4]
[327993199,1716765032696,-521.48189266,0.00027397,4]
[327993200,1716765032705,-500.0,0.00027397,4]
[327993201,1716765032715,-500.0,0.00027397,4]
[327993202,1716765032724,-506.45373906,0.00027397,4]
[327993203,1716765032733,-540.47389286,0.00027397,4]
[327993204,1716765032742,-500.0,0.00027397,4]
[327993205,1716765032751,-509.97022761,0.00027397,4]
[327993206,1716765032760,-515.49853733,0.00027397,4]
[327993207,1716765032769,-185.60238994,0.00027397,4]
[327993208,1716765032779,-528.1509911,0.00027397,4]
[327993209,1716765032791,-509.95820615,0.00027397,4]
[327993210,1716765032800,-499.26175053,0.00027397,4]
[327993211,1716765032809,-200.0,0.00027397,4]
[327993212,1716765032818,-500.0,0.00027397,4]
[327993213,1716765032829,-506.46774078,0.00027397,4]
[327993214,1716765032839,-517.73124297,0.00027397,4]
[327993215,1716765032847,-500.0,0.00027397,4]
[327993216,1716765032856,-517.99609228,0.00027397,4]
[327993217,1716765032868,-500.0,0.00027397,4]
[327993218,1716765032877,-315.66936851,0.00027397,4]
[327993219,1716765032886,-534.43561266,0.00027397,4]
[327993220,1716765032895,-500.0,0.00027397,4]
[327993221,1716765032904,-511.31346257,0.00027397,4]
[327993222,1716765032913,-500.0,0.00027397,4]
[327993223,1716765032922,-499.43822028,0.00027397,4]
[327993224,1716765032931,-587.76,0.00027397,4]
[327993225,1716765032941,-522.42094259,0.00027397,4]
[327993226,1716765032950,-400.16313821,0.00027397,4]
[327993227,1716765032959,-529.33349468,0.00027397,4]
[327993228,1716765032968,-500.0,0.00027397,4]
[327993229,1716765032977,-500.0,0.00027397,4]
[327993230,1716765032986,-500.0,0.00027397,4]
[327993231,1716765032995,-500.0,0.00027397,4]
[327993232,1716765033004,-500.0,0.00027397,4]
[327993233,1716765033013,-500.0,0.00027397,4]
[327993234,1716765033022,-530.13137305,0.00027397,4]
[327993235,1716765033031,-457.31187962,0.00027397,4]
[327993236,1716765033040,-528.47373788,0.00027397,4]
[327993237,1716765033050,-542.65540595,0.00027397,4]
[327993238,1716765033059,-500.0,0.00027397,4]
[327993239,1716765033068,-521.64358253,0.00027397,4]
[327993240,1716765033077,-523.68,0.00027397,4]
[327993241,1716765033086,-527.34098335,0.00027397,4]
[327993242,1716765033095,-517.31289648,0.00027397,4]
[327993243,1716765033104,-551.14,0.00027397,4]
[327993244,1716765033122,-517.91037804,0.00027397,4]
[327993245,1716765033133,-500.0,0.00027397,4]
[327993246,1716765033143,-500.0,0.00027397,4]
[327993247,1716765033153,-502.45762438,0.00027397,4]
[327993248,1716765033163,-500.0,0.00027397,4]
[327993249,1716765033172,-500.0,0.00027397,4]
[327993250,1716765033182,-500.0,0.00027397,4]
[327993251,1716765033192,-509.98838085,0.00027397,4]
[327993252,1716765033201,-538.56159906,0.00027397,4]
[327993253,1716765033211,-505.0911917,0.00027397,4]
[327993254,1716765033220,-500.0,0.00027397,4]
[327993255,1716765033230,-500.0,0.00027397,4]
[327993256,1716765033239,-500.0,0.00027397,4]
[327993257,1716765033249,-500.0,0.00027397,4]
[327993258,1716765033258,-506.09555298,0.00027397,4]
[327993259,1716765033267,-500.0,0.00027397,4]
[327993260,1716765033277,-546.14,0.00027397,4]
[327993261,1716765033287,-500.0,0.00027397,4]
[327993262,1716765033297,-526.38059258,0.00027397,4]
[327993263,1716765033307,-457.03385521,0.00027397,4]
[327993264,1716765033316,-500.0,0.00027397,4]
[327993265,1716765033326,-500.0,0.00027397,4]
[327993266,1716765033336,-500.0,0.00027397,4]
[327993267,1716765033346,-500.0,0.00027397,4]
[327993268,1716765033356,-500.0,0.00027397,4]
[327993269,1716765033366,-500.0,0.00027397,4]
[327993270,1716765033375,-500.0,0.00027397,4]
[327993271,1716765033385,-557.36363329,0.00027397,4]
[327993272,1716765033394,-500.0,0.00027397,4]
[327993273,1716765033403,-500.0,0.00027397,4]
[327993274,1716765033413,-500.0,0.00027397,4]
[327993275,1716765033422,-500.0,0.00027397,4]
[327993276,1716765033432,-500.0,0.00027397,4]
[327993277,1716765033442,-500.0,0.00027397,4]
[327993278,1716765033451,-500.0,0.00027397,4]
[327993279,1716765033461,-519.4118026,0.00027397,4]
[327993280,1716765033471,-500.0,0.00027397,4]
[327993281,1716765033480,-500.0,0.00027397,4]
[327993282,1716765033490,-581.9,0.00027397,4]
[327993283,1716765033500,-500.0,0.00027397,4]
[327993284,1716765033509,-500.0,0.00027397,4]
[327993285,1716765033518,-500.0,0.00027397,4]
[327993286,1716765033528,-505.25435722,0.00027397,4]
[327993287,1716765033537,-500.0,0.00027397,4]
[327993288,1716765033549,-186.75438156,0.00027397,4]
[327993289,1716765033559,-406.6977212,0.00027397,4]
[327993290,1716765033568,-500.0,0.00027397,4]
[327993291,1716765033578,-500.0,0.00027397,4]
[327993292,1716765033587,-510.56812933,0.00027397,4]
[327993293,1716765033597,-500.0,0.00027397,4]
[327993294,1716765033606,-500.0,0.00027397,4]
[327993295,1716765033617,-511.32181628,0.00027397,4]
[327993296,1716765033626,-537.74,0.00027397,4]
[327993297,1716765033635,-500.0,0.00027397,4]
[327993298,1716765033645,-500.0,0.00027397,4]
[327993299,1716765033654,-500.0,0.00027397,4]
[327993300,1716765033663,-500.0,0.00027397,4]
[327993301,1716765033673,-500.0,0.00027397,4]
[327993302,1716765033683,-500.0,0.00027397,4]
[327993303,1716765033693,-500.0,0.00027397,4]
[327993304,1716765033702,-500.0,0.00027397,4]
[327993305,1716765033711,-500.0,0.00027397,4]
[327993306,1716765033720,-500.0,0.00027397,4]
[327993307,1716765033730,-519.17250589,0.00027397,4]
[327993308,1716765033740,-478.29492604,0.00027397,4]
[327993309,1716765033749,-500.0,0.00027397,4]
[327993310,1716765033759,-500.0,0.00027397,4]
[327993311,1716765033768,-500.0,0.00027397,4]
[327993312,1716765033778,-521.10193537,0.00027397,4]
[327993313,1716765033792,-500.0,0.00027397,4]
[327993314,1716765033801,-500.0,0.00027397,4]
[327993315,1716765033811,-500.0,0.00027397,4]
[327993316,1716765033820,-500.0,0.00027397,4]
[327993317,1716765033831,-645.10923569,0.00027397,4]
[327993318,1716765033840,-500.0,0.00027397,4]
[327993319,1716765033850,-392.95923582,0.00027397,4]
[327993320,1716765033862,-530.3871519,0.00027397,4]
[327993321,1716765033871,-500.0,0.00027397,4]
[327993322,1716765033880,-500.0,0.00027397,4]
[327993323,1716765033889,-500.0,0.00027397,4]
[327993324,1716765033898,-511.03705124,0.00027397,4]
[327993325,1716765033907,-500.0,0.00027397,4]
[327993326,1716765033917,-500.0,0.00027397,4]
[327993327,1716765033926,-526.04912567,0.00027397,4]
[327993328,1716765033935,-500.0,0.00027397,4]
[327993329,1716765033944,-504.95681744,0.00027397,4]
[327993330,1716765033954,-600.95447767,0.00027397,4]
[327993331,1716765033963,-500.0,0.00027397,4]
[327993332,1716765033972,-500.0,0.00027397,4]
[327993333,1716765033982,-500.0,0.00027397,4]
[327993334,1716765033991,-500.0,0.00027397,4]
[327993335,1716765034000,-500.0,0.00027397,4]
[327993336,1716765034010,-500.0,0.00027397,4]
[327993337,1716765034020,-612.86,0.00027397,4]
[327993338,1716765034029,-500.0,0.00027397,4]
[327993339,1716765034038,-500.0,0.00027397,4]
[327993340,1716765034048,-500.0,0.00027397,4]
[327993341,1716765034057,-500.0,0.00027397,4]
[327993342,1716765034067,-500.0,0.00027397,4]
[327993343,1716765034076,-539.37635669,0.00027397,4]
[327993344,1716765034085,-500.0,0.00027397,4]
[327993345,1716765034095,-512.6953399,0.00027397,4]
[327993346,1716765034104,-500.0,0.00027397,4]
[327993347,1716765034114,-500.0,0.00027397,4]
[327993348,1716765034124,-463.6118064,0.00027397,4]
[327993349,1716765034425,-36.3881936,0.00027397,4]
[327993350,1716765034435,-500.0,0.00027397,4]
[327993351,1716765034444,-500.0,0.00027397,4]
[327993352,1716765034453,-500.0,0.00027397,4]
[327993353,1716765034463,-357.42209042,0.00027397,4]
[327993354,1716765034471,-500.0,0.00027397,4]
[327993355,1716765034481,-514.17971391,0.00027397,4]
[327993356,1716765034490,-500.0,0.00027397,4]
[327993357,1716765034499,-387.67770207,0.00027397,4]
[327993358,1716765034511,-112.32229793,0.00027397,4]
[327993359,1716765034520,-500.0,0.00027397,4]
[327993360,1716765034530,-555.854914,0.00027397,4]
[327993361,1716765034539,-500.0,0.00027397,4]
[327993362,1716765034548,-500.0,0.00027397,4]
[327993363,1716765034557,-249.96368807,0.00027397,4]
[327993364,1716765034582,-250.03631193,0.00027397,4]
[327993365,1716765034591,-500.0,0.00027397,4]
[327993366,1716765034601,-500.0,0.00027397,4]
[327993367,1716765034611,-500.0,0.00027397,4]
[327993368,1716765034620,-500.0,0.00027397,4]
[327993369,1716765034766,-500.0,0.00027397,4]
[327993370,1716765034776,-500.0,0.00027397,4]
[327993371,1716765034789,-508.18297792,0.00027397,4]
[327993372,1716765034799,-541.07330821,0.00027397,4]
[327993373,1716765034808,-511.73,0.00027397,4]
[327993374,1716765034817,-500.0,0.00027397,4]
[327993375,1716765034827,-500.0,0.00027397,4]
[327993376,1716765034837,-188.78710354,0.00027397,4]
[327993377,1716765034850,-311.21289646,0.00027397,4]
[327993378,1716765034860,-500.0,0.00027397,4]
[327993379,1716765034871,-500.0,0.00027397,4]
[327993380,1716765034882,-506.22965654,0.00027397,4]
[327993381,1716765034891,-118.00615275,0.00027397,4]
[327993382,1716765034903,-381.99384725,0.00027397,4]
[327993383,1716765034912,-500.0,0.00027397,4]
[327993384,1716765034921,-500.0,0.00027397,4]
[327993385,1716765034930,-500.0,0.00027397,4]
[327993386,1716765034939,-394.51822503,0.00027397,4]
[327993387,1716765034950,-105.48177497,0.00027397,4]
[327993388,1716765034959,-500.0,0.00027397,4]
[327993389,1716765034969,-500.0,0.00027397,4]
[327993390,1716765034979,-500.0,0.00027397,4]
[327993391,1716765034988,-350.89415857,0.00027397,4]
[327993392,1716765035000,-149.10584143,0.00027397,4]
[327993393,1716765035009,-500.0,0.00027397,4]
[327993394,1716765035019,-500.0,0.00027397,4]
[327993395,1716765035028,-429.07844445,0.00027397,4]
[327993396,1716765035112,-70.92155555,0.00027397,4]
[327993397,1716765035122,-500.0,0.00027397,4]
[327993398,1716765035131,-500.0,0.00027397,4]
[327993399,1716765035141,-500.0,0.00027397,4]
[327993400,1716765035150,-500.0,0.00027397,4]
[327993401,1716765035160,-524.01503204,0.00027397,4]
[327993402,1716765035169,-500.0,0.00027397,4]
[327993403,1716765035178,-500.0,0.00027397,4]
[327993404,1716765035187,-500.0,0.00027397,4]
[327993405,1716765035196,-343.20352051,0.00027397,4]
[327993406,1716765035206,-500.0,0.00027397,4]
[327993407,1716765035215,-500.0,0.00027397,4]
[327993408,1716765035225,-1.8198919,0.00027397,4]
[327993414,1716765037929,-567.6803,0.00015637,2]
[327993415,1716765038100,-1492.0,0.00015637,2]
[327993433,1716765040763,-0.06112387,0.00015637,2]
[327993434,1716765040938,-2177.01821,0.00015637,2]
[327993435,1716765041874,-5763.24036613,0.00015637,2]
[327993436,1716765041883,-10000.0,0.00015637,2]
[327993437,1716765041893,-490.1801081,0.00027397,4]
[327993438,1716765041902,-500.0,0.00027397,4]
[327993439,1716765041912,-500.0,0.00027397,4]
[327993440,1716765041922,-500.0,0.00027397,4]
[327993441,1716765041931,-500.0,0.00027397,4]
[327993442,1716765041940,-500.0,0.00027397,4]
[327993443,1716765041949,-500.0,0.00027397,4]
[327993444,1716765041960,-500.0,0.00027397,4]
[327993445,1716765041970,-545.99127119,0.00027397,4]
[327993446,1716765041980,-500.0,0.00027397,4]
[327993447,1716765041991,-500.0,0.00027397,4]
[327993448,1716765042000,-500.0,0.00027397,4]
[327993449,1716765042009,-281.62873503,0.00027397,4]
[327993450,1716765042018,-500.0,0.00027397,4]
[327993451,1716765042027,-500.0,0.00027397,4]
[327993453,1716765042037,-500.0,0.00027397,4]
[327993455,1716765042047,-500.0,0.00027397,4]
[327993456,1716765042056,-500.0,0.00027397,4]
[327993457,1716765042065,-500.0,0.00027397,4]
[327993458,1716765042074,-500.0,0.00027397,4]
[327993459,1716765042085,-500.0,0.00027397,4]
[327993460,1716765042094,-500.0,0.00027397,4]
[327993461,1716765042103,-521.98189503,0.00027397,4]
[327993462,1716765042112,-500.0,0.00027397,4]
[327993463,1716765042123,-500.0,0.00027397,4]
[327993464,1716765042132,-190.87593493,0.00027397,4]
[327993465,1716765042141,-508.84117852,0.00027397,4]
[327993466,1716765042150,-500.0,0.00027397,4]
[327993467,1716765042159,-500.0,0.00027397,4]
[327993468,1716765042169,-500.0,0.00027397,4]
[327993469,1716765042178,-500.0,0.00027397,4]
[327993470,1716765042187,-504.62759697,0.00027397,4]
[327993471,1716765042197,-500.0,0.00027397,4]
[327993472,1716765042206,-500.0,0.00027397,4]
[327993473,1716765042215,-508.60204679,0.00027397,4]
[327993474,1716765042223,-500.0,0.00027397,4]
[327993475,1716765042233,-500.0,0.00027397,4]
[327993476,1716765042241,-500.0,0.00027397,4]
[327993477,1716765042251,-500.0,0.00027397,4]
[327993478,1716765042260,-500.0,0.00027397,4]
[327993479,1716765042269,-500.0,0.00027397,4]
[327993480,1716765042277,-500.0,0.00027397,4]
[327993481,1716765042286,-500.0,0.00027397,4]
[327993482,1716765042295,-500.0,0.00027397,4]
[327993483,1716765042304,-500.0,0.00027397,4]
[327993484,1716765042313,-500.0,0.00027397,4]
[327993485,1716765042322,-500.0,0.00027397,4]
[327993486,1716765042331,-500.0,0.00027397,4]
[327993487,1716765042341,-500.0,0.00027397,4]
[327993488,1716765042350,-500.0,0.00027397,4]
[327993489,1716765042359,-500.0,0.00027397,4]
[327993490,1716765042369,-509.89900582,0.00027397,4]
[327993491,1716765042378,-500.0,0.00027397,4]
[327993492,1716765042388,-500.0,0.00027397,4]
[327993493,1716765042397,-2000.0,0.00027397,4]
[327993494,1716765042406,-500.0,0.00027397,4]
[327993495,1716765042415,-281.83597484,0.00027397,4]
[327993496,1716765042424,-500.0,0.00027397,4]
[327993497,1716765042435,-500.0,0.00027397,4]
[327993498,1716765042444,-500.0,0.00027397,4]
[327993499,1716765042453,-500.0,0.00027397,4]
[327993500,1716765042463,-520.13988719,0.00027397,4]
[327993501,1716765042472,-500.0,0.00027397,4]
[327993502,1716765042481,-500.0,0.00027397,4]
[327993503,1716765042490,-500.0,0.00027397,4]
[327993504,1716765042499,-500.0,0.00027397,4]
[327993505,1716765042509,-500.0,0.00027397,4]
[327993506,1716765042517,-500.0,0.00027397,4]
[327993507,1716765042527,-583.38579818,0.00027397,4]
[327993508,1716765042538,-591.57761564,0.00027397,4]
[327993509,1716765042549,-500.0,0.00027397,4]
[327993511,1716765042558,-500.0,0.00027397,4]
[327993512,1716765042568,-500.0,0.00027397,4]
[327993513,1716765042681,-500.0,0.00027397,4]
[327993514,1716765042711,-500.0,0.00027397,4]
[327993515,1716765042721,-500.0,0.00027397,4]
[327993516,1716765042730,-500.0,0.00027397,4]
[327993517,1716765042739,-529.67226339,0.00027397,4]
[327993518,1716765042749,-500.0,0.00027397,4]
[327993519,1716765042759,-500.0,0.00027397,4]
[327993520,1716765042769,-527.27815493,0.00027397,4]
[327993522,1716765042779,-500.0,0.00027397,4]
[327993524,1716765042793,-500.0,0.00027397,4]
[327993526,1716765042803,-500.0,0.00027397,4]
[327993527,1716765042812,-500.0,0.00027397,4]
[327993528,1716765042822,-500.0,0.00027397,4]
[327993529,1716765042833,-500.0,0.00027397,4]
[327993530,1716765042842,-500.0,0.00027397,4]
[327993531,1716765042852,-500.0,0.00027397,4]
[327993532,1716765042861,-500.0,0.00027397,4]
[327993533,1716765042872,-500.0,0.00027397,4]
[327993534,1716765042883,-500.0,0.00027397,4]
[327993535,1716765042892,-500.0,0.00027397,4]
[327993536,1716765042901,-500.0,0.00027397,4]
[327993537,1716765042910,-500.0,0.00027397,4]
[327993538,1716765042920,-500.0,0.00027397,4]
[327993539,1716765042929,-500.0,0.00027397,4]
[327993540,1716765042938,-500.0,0.00027397,4]
[327993541,1716765042947,-500.0,0.00027397,4]
[327993542,1716765042956,-500.0,0.00027397,4]
[327993543,1716765042967,-500.0,0.00027397,4]
[327993544,1716765042976,-500.0,0.00027397,4]
[327993545,1716765042985,-500.0,0.00027397,4]
[327993546,1716765042994,-500.0,0.00027397,4]
[327993547,1716765043003,-500.0,0.00027397,4]
[327993548,1716765043012,-500.0,0.00027397,4]
[327993549,1716765043021,-500.0,0.00027397,4]
[327993550,1716765043031,-500.0,0.00027397,4]